{"text_format":"3","workbook":"xlsx","n_sheets":3,"sheets":["Sheet1","Sheet2","Sheet3"],"not_rendered":{"defined_names":2},"read":"whole","date_system":"1900"}

{"sheet":"Sheet1","index":0,"n_rows":116,"n_cols":6,"rows_kept":116,"merged":[[10,0,10,5],[11,1,11,5],[13,1,13,4],[17,0,21,0],[22,0,27,0],[28,0,30,0],[31,0,35,0],[36,0,40,0],[41,0,48,0],[49,0,52,0],[53,0,58,0],[59,0,62,0],[63,0,68,0],[69,0,71,0],[72,0,73,0],[75,1,75,4],[77,0,77,5],[79,0,86,0],[87,0,88,0],[89,0,91,0],[92,0,94,0],[95,0,96,0],[97,0,98,0],[99,0,100,0],[101,0,102,0],[103,0,107,0],[109,1,109,4],[111,1,111,4],[113,1,113,4],[115,1,115,4],[117,0,117,5]]}
[null,"Stubova mosta","kom",2]
[null,"Broj dilatacija pešačke ograde","kom",15]
[null,"Broj segmenata zaštitne mreže H=2m (iznad pruge) ","kom",6]
[null,"Ukupan broj svih uzemljenja pešačke ograde na oba mosta","kom",9]
[null,"Ukupan broj svih uzemljenja zaštitne mreže iznad pruge","kom",4]
[null,"Stubova rasvete za uzemljenje:","kom",2]
[null,"Broj slivnika na drumskom mostu","kom",6]
[null,"Broj slivnika na pešačkom mostu","kom",3]
[null,"1 kotur trake je 50 kg - 62,5m"]
[]
["PREDMER  RADOVA "]
[null,"Uzemljenje i ekvipotencijalizacija Mosta preko reke Lepenice kod „Šest topola“ u Kragujevcu"]
[]
[null,"Svaka tačka ovog predmera obuhvata isporuku glavnog i nabavku i isporuku svog pomoćnog, potrebnog materijala i svih potrebnih radova (i ono što nije eksplicitno navedeno) da bi instalacija nesmetano funkcionisala. Umesto navedenih proizvođača i tipova opreme i materijala, mogu se koristiti i drugi, istih tehničkih karakteristika. Napomena: Izvođač radova je obavezan da pre otvaranja iskopa obeleži postojeću podzemnu i nadzemnu instalaciju sa predstavnicima organizacija čije su one vlasništvo i u skladu sa propisima i zahtevima vlasnika obezbedi potpunu zaštitu istih."]
[]
[null,"MATERIJAL ZA IZGRADNjU SISTEMA EKVIPOTENCIJALIZACIJE POSTOJEĆEG MOSTA:"]
["rb","OPIS POZICIJE","JED.\nMERE","KOL.","JED. CENA","UKUPNO BEZ PDV-a(RSD)"]
[1,"Sabirni zemljovod SZ_1:"]
[null,"FeZn traka 25x4 mm (1M=0.8KG)","m",80]
[null,"Ukrsni komad traka-traka (1 po mestu prevezivanja)","kom",2]
[null,"Ukrsni komad traka-uže","kom",4]
[null,"FeZn uže 95 mm2 ","m",1]
[2,"Sabirni zemljovod SZ_2:"]
[null,"FeZn traka 25x4 mm (1M=0.8KG)","m",120]
[null,"Ukrsni komad traka-traka (1 po mestu prevezivanja)","kom",2]
[null,"Ukrsni komad traka-uže","kom",4]
[null,"Nosač FeZn trake (1 komad na svakih 1.5m)","kom",12]
[null,"FeZn uže 95 mm2 ","m",1]
[3,"Poprečne veze"]
[null,"FeZn traka 25x4 mm (1M=0.8KG) (8.5m po poprečnoj vezi)","m",40]
[null,"Ukrsni komad traka-traka (2 kom po poprečnoj vezi)","kom",{"$f":"2*$D$6/2","v":2}]
[4,"Uzemljenje zaštitne pešačke ograde (DETALJI A-2, C, G-2 i J):"]
[null,"FeZn traka 25x4 mm (1M=0.8KG) (1.5m po mestu povezivanja)","m",{"$f":"1.5*$D$4","v":13.5}]
[null,"Međusobna veza segmenata pešačke ograde (dilatacije): "]
[null,"Izol. provodnik P/f Cu (ŽuZe) 1x16 mm2 (0.3m po dilataciji)","m",{"$f":"0.3*$D$2","v":4.5}]
[null,"Kompresiona papučica  AlCu 16/10 (2 kom. po dilataciji)","kom",{"$f":"2*$D$2","v":30}]
[5,"Uzemljenje zaštitne mreže H=2m (iznad železničke pruge) (DETALj A-1, G-1 i L):"]
[null,"FeZn traka 25x4 mm (1M=0.8KG) (1.5m po mestu vezivanja)","m",{"$f":"1.5*$D$5","v":6}]
[null,"Međusobna veza segmenata zaštitne mreže (prespoj):"]
[null,"Izol. provodnik P/f Cu (ŽuZe) 1x16 mm2 (0.3m po prespoju)","m",{"$f":"0.3*$D$2","v":4.5}]
[null,"Kompresiona papučica AlCu 16/10 (2 kom. po prespoju)","kom",14]
[6,"Uzemljenje stubova javnog osvetljenja (DETALj D):"]
[null,"Kompresiona papučica  AlCu 16/10 (1 po stubu)","kom",{"$f":"1*$D$5","v":4}]
[null,"Izol. provodnik P/f Cu (ŽuZe) 1x16 mm2 (0.5m po stubu)","m",{"$f":"0.5*$D$5","v":2}]
[null,"Ukrsni komad traka-uže (Va-Cu) (1 po stubu)","kom",{"$f":"1*$D$5","v":4}]
[null,"FeZn traka 25x4 mm (1M=0.8KG) (1m po mestu povezivanja)","m",{"$f":"1*$D$5","v":4}]
[null,"Ukrsni komad traka-traka (1 po mestu povezivanja)","kom",{"$f":"1*$D$5","v":4}]
[null,"FeZn uže 95 mm2 koje se vari za ogradu (0.5m po stubu)","m",{"$f":"0.5*$D$5","v":2}]
[null,"Komresiona papučica 95/10 (1 po stubu)","kom",{"$f":"1*$D$5","v":4}]
[7,"Uzemljenje slivnika na drumskom mostu (DETALJ E-1 i E-2):"]
[null,"Ukrsni komad traka-uže (Va-Cu) (1 po slivniku)","kom",{"$f":"$D$6","v":2}]
[null,"Izol. provodnik P/f Cu (ŽuZe) 1x16 mm2 (1m po slivniku)","m",{"$f":"1*$D$6","v":2}]
[null,"Kompresiona papučica  AlCu 16/10 (1 po slivniku)","kom",{"$f":"$D$6","v":2}]
[8,"Uzemljenje slivnika na pešačkom mostu (DETALj B):"]
[null,"FeZn šelna Ø160 mm (slična tipu ABRE160 proizvođača \"Index\")  (1 kom po slivniku)","kom",{"$f":"$D$7","v":6}]
[null,"Izol. provodnik P/f Cu (ŽuZe) 1x16 mm2 (0.5m po slivniku)","m",{"$f":"$D$7*0.5","v":3}]
[null,"Ukrsni komad traka-uže (Va-Cu) (1 po mestu povezivanja)","kom",{"$f":"$D$7","v":6}]
[null,"FeZn traka 25x4 mm (1M=0.8KG) (0.5m po slivniku)","m",{"$f":"0.5*$D$7","v":3}]
[null,"Nosač FeZn trake (1 kom. po slivniku)","kom",{"$f":"$D$7","v":6}]
[9,"Uzemljenje cevi gasne instalacije (DETALj F):"]
[null,"FeZn šelna Ø400 mm (1 kom po mestu vezivanja)","kom",2]
[null,"Izol. provodnik P/f Cu (ŽuZe) 1x16 mm2 (1m po mestu vez.)","m",2]
[null,"Ukrsni komad traka-uže (Va-Cu) (1 kom po mestu vezivanja)","kom",2]
[10,"Sistem spusnih provodnika:"]
[null,"FeZn traka 25x4 mm (1M=0.8KG) (12m po vertikali)","m",{"$f":"12*2*$D$1","v":48}]
[null,"Ukrsni komad traka-traka (3 kom po vertikali)","kom",{"$f":"3*2*$D$1","v":12}]
[null,"Nosač FeZn trake (1 komad na svakih 1.5m)","kom",{"$f":"(12*2*$D$1)/1.5","v":32}]
[null,"Merna spojnica (2 kom po stubu mosta)","kom",{"$f":"2*$D$1","v":4}]
[null,"Mehanička zaštita 1500 mm (2 kom po stubu mosta)","kom",{"$f":"2*$D$1","v":4}]
[11,"Sistem uzemljenja:"]
[null,"FeZn traka 25x4 mm (1M=0.8KG)","m",50]
[null,"Ukrsni komad traka-traka (2 po stubu mosta)","kom",{"$f":"2*$D$1","v":4}]
[12,"Povezivanje dilatacije pešačkog mosta (DETALJ I):"]
[null,"FeZn uže 95 mm2 (1m po vezi)","m",{"$f":"0.5*4","v":2}]
[13,"Sitan instalacioni materijal (papuče, zavrtnji, elektrode itd.), ","pauš.",1]
[null,"Ukupno glavni materijal:"]
[]
["RADOVI ZA IZGRADNjU SISTEMA EKVIPOTENCIJALIZACIJE DRUMSKO-PEŠAČKOG MOSTA:"]
["rb","OPIS POZICIJE","JED.\nMERE","KOL.","JED. CENA","UKUPNO BEZ PDV-a(RSD)"]
[14,"Postavljanje sabirnih zemljovoda SZ_1 i SZ_2 i poprečnih veza"]
[null,"Postavljanje sabirnog zemljovoda SZ_1 (FeZn traka 25x4 mm) kroz betonsku ploču drumskog mosta i povezivanje svih veza (patrljaka) koji vire van ploče, pomoću odgovarajućih poprečnih FeZn komada sa dva zavrtnja.","h",16]
[null,"Povezivanje SZ_1 na čeličnu konstrukciju pešačkog mosta - pomoću FeZn užeta 95 mm2 i ukrsnih komada traka-uže.","h",4]
[null,"Postavljanje sabirnog zemljovoda SZ_2 (FeZn traka 25x4 mm) kroz betonsku ploču drumskog mosta i povezivanje svih veza (patrljaka) koji vire van ploče, pomoću odgovarajućih poprečnih FeZn komada sa dva zavrtnja.","h",16]
[null,"Premošćavanje dilatacija na mostu - pomoću FeZn užeta 95 mm2  i ukrsnih komada traka-uže.","h",8]
[null,"Postavljanje sabirnog zemljovoda SZ_2 (FeZn traka 25x4 mm) na bočnoj strani mosta, na nosačima za beton na svakih 1,5 m .","h",6]
[null,"Postavljanje i varenje FeZn trake 25x4 mm na čeličnu \"I\" gredu pešačkog mosta i ostavljanje patrljaka koji vire iz ploče, za naknadna povezivanja metalnih delova na mostu. ","h",4]
[null,"Postavljanje poprečnih veza (FeZn traka 25x4 mm) kroz betonsku ploču drumskog mosta i povezivanje na oba sabirna zemljovoda, pomoću odgovarajućih FeZn ukrsnih komada traka-traka.","h",8]
[15,"Uzemljenje stubova javnog osvetljenja:"]
[null,"Povezivanje stubova javnog osvetljenja na sabirni zemljovod SZ_1 (čelično pocinčanu traku Fe/Zn 25x4 mm), preko ostavljenog patrljka, pomoću provodnika P/f poprečnog preseka 16 mm2 preko ukrsnog komada traka-uže i  kompresione papučice  koja se postavlja na odgovarajući zavrtanj unutar stuba.","h",4]
[16,"Uzemljenje zaštitne pešačke ograde:"]
[null,"Povezivanje zaštitne pešačke ograde oba mosta, sa sabirnim zemljovodima SZ_1, SZ_2 i čeličnom konstrukcijom pešačkog mosta, varenjem ostavljenog patrljka (FeZn trake 25x4 mm) na ogradi i varenjem na čeličnom \"I\" nosaču.","h",32]
[null,"Povezivanje svih segmenata pešačke ograde (dilatacija) na oba mosta - pomoću provodnika P/f poprečnog preseka 16 mm2 i pričvršćivanje na ogradu preko zavrtnja i kompresionih papučica.","h",16]
[17,"Uzemljenje zaštitne mreže H=2m (iznad železničke pruge):"]
[null,"Povezivanje zaštitne mreže, sa sabirnim zemljovodom SZ_2 i čeličnom konstrukcijom pešačkog mosta, varenjem ostavljenog patrljka (FeZn trake 25x4 mm) na ogradi.","h",12]
[null,"Povezivanje svih segmenata zaštitne mreže (prespoji) na oba mosta - pomoću provodnika P/f poprečnog preseka 16 mm2i pričvršćivanje na ogradu preko zavrtnja i kompresionih papučica.","h",4]
[18,"Uzemljenje slivnika na drumskom mostu:"]
[null,"Povezivanje slivnika na poprečne veze (čelično pocinčanu traku Fe/Zn 25x4 mm) pomoću bakarnog P/f provodnika, poprečnog preseka 16 mm2 preko ukrsnog komada traka-uže i kompresione papučice,  koja se postavlja na odgovarajući zavrtanj ispod slivnika.","h",8]
[19,"Uzemljenje slivnika na pešačkom mostu:"]
[null,"Postavljanje FeZn šelni (obujmica) oko metalnog dela slivnika ispod konstrukcije mosta i povezivanje obujmice sa čeličnom konstrukcijom mosta, pomoću bakarnog P/f provodnika, poprečnog preseka 16 mm2 i kompresionih papučica koje se stavljaju na zavrtanj obujmice (sa odgovarajućim nazupčenim podloškama) sa strane obujmice i ukrsnim komadom traka-uže sa strane Fe/Zn trake 25x4 mm i sa varenjem trake na konstrukciju mosta.","h",16]
[20,"Uzemljenje cevi gasne instalacije:"]
[null,"Postavljanje FeZn šelni (obujmica) oko cevi gasne instalacije, ispod konstrukcije mosta, i povezivanje obujmice sa spusnim provodnikom, pomoću bakarnog P/f provodnika, poprečnog preseka 16 mm2 i kompresionih papučica koje se stavljaju na zavrtanj obujmice (sa odgovarajućim nazupčenim podloškama) sa strane obujmice i ukrsnim komadom traka-uže sa strane spusnog provodnika.","h",8]
[21,"Postavljanje sistema spusnih provodnika:"]
[null,"Postavljanje trake FeZn 25x4mm sa obe strane stubova na nosačima za beton na svakih 1,5m i međusobno povezivanje spusnih provodnika FeZn trakom ispod naglavne grede. Na dnu stuba se traka štiti mehaničkom zaštitom do visine 1,6m. Na 1,6 m, na traci sa obe strane stuba, se postavljaju merne spojnice za merenje otpora uzemljenja.","h",40]
[22,"Postavljanje sistema uzemljenja:"]
[null,"Mašinski iskop rova dubine  0,8 m, širine 0,4 (zemlje III kategorije) oko temelja stuba . Iskopanu zemlju utovariti i odvesti na deponiju u krugu gradilišta. ","m3",19]
[null,"Polaganje u već iskopanom rovu, pocinkovane čelične trake 25x4 mm, u sloju sitne zemlje, debljine 0.1 m i nasipanje iskopanog rova zemljom. Zemlju nasipati u slojevima od 20cm i nabiti do potrebne zbijenosti. Obračun po dužnom metru trake.","m",50]
[null,"Postavljanje vertikalnih uzemljivača - pocinkovanih cevi Fe/Zn prečnika 63,5 mm dužine 3 m, na krajevima SZ_2, komplet sa isporukom i montažom obujmica za cev za povezivanje vertikalnih uzemljivača sa Fe/Zn užetom uzemljivača. Obračun po vertikalnom uzemljivaču.","kom",2]
[null,"Čišćenje gradilišta, odvoz viška zemlje i šuta na deponiju, a koju odredi Investitor.",null,"pauš."]
[null,"Izrada Elaborata geodetskih radova za izvedene instalacije",null,"pauš."]
[" ","  Ukupno radovi na izgradnji:"]
[]
[null,"UKUPNO MATERIJAL:"]
[]
[null,"UKUPNO RADOVI NA IZGRADNjI:"]
[]
[null,"UKUPNO MATERIJAL I RADOVI:"]

{"sheet":"Sheet2","index":1,"n_rows":16,"n_cols":5,"rows_kept":16}
["Материјал укупно:","Количина:","Јед. Мере","Основна вредност","Укупно:"]
["FeZn трака 25X4 mm (1M=0.8KG) "]
["FeZn уже 95 mm2"]
["P/f Cu (ЖуЗе) 1x16 mm2 "]
["Укрсни комад трака-трака "]
["Укрсни комад трака-уже "]
["Укрсни комад трака-уже (Va-Cu) "]
["Комресионе папучице 95/12 "]
["Завртањ М12/60 са звездастом подлошком и навртком"]
["Компресиона папучица  AlCu 16/12 "]
["Попречни FeZn комад са два завртња"]
["Мерна спојница "]
["Механичка заштита 1500 mm"]
["FeZn шелна 160 mm  "]
["Ситан инсталациони материјал (папуче, завртњи, електроде итд.), "]
["∑"]

{"sheet":"Sheet3","index":2,"n_rows":0,"n_cols":0,"rows_kept":0}